fUST/lending_fUST_20240707
["ID","MTS","AMOUNT","RATE_DAILY","PERIOD"]
[331387616,1720318240643,-151.0,0.00020863,2]
[331387617,1720318240653,-151.0,0.00020863,2]
[331387618,1720318240663,-218.921053,0.00020863,2]
[331387619,1720318240673,-315.455006,0.00020863,2]
[331387620,1720318240682,-315.455006,0.00020863,2]
[331387621,1720318240692,-763.32326228,0.00020873,2]
[331387622,1720318240702,-225.57506949,0.00020873,2]
[331387623,1720318240713,-428.01995593,0.00020873,2]
[331387624,1720318240722,-4173.5699611,0.00020873,2]
[331387625,1720318240734,-3141.48879474,0.00020873,2]
[331387626,1720318240743,-151.0,0.00020873,2]
[331387627,1720318240754,-151.0,0.00020873,2]
[331387628,1720318240763,-151.0,0.00020873,2]
[331387629,1720318240773,-325.28721,0.00020873,2]
[331387630,1720318240783,-325.28721,0.00020873,2]
[331387631,1720318240793,-325.28721,0.00020873,2]
[331387632,1720318240803,-325.28721,0.00020873,2]
[331387633,1720318240812,-323.858782,0.00020873,2]
[331387634,1720318240822,-323.858782,0.00020873,2]
[331387635,1720318240831,-323.858782,0.00020873,2]
[331387636,1720318240841,-323.858782,0.00020873,2]
[331387637,1720318240852,-176.256059,0.00020873,2]
[331387638,1720318240861,-176.256059,0.00020873,2]
[331387639,1720318240871,-176.256059,0.00020873,2]
[331387640,1720318240881,-176.256059,0.00020873,2]
[331387641,1720318240891,-153.588416,0.00020873,2]
[331387642,1720318240904,-269.51865,0.00020873,2]
[331387643,1720318240914,-151.0,0.00020873,2]
[331387644,1720318240923,-151.0,0.00020873,2]
[331387645,1720318240933,-272.907309,0.00020873,2]
[331387646,1720318240943,-195.888983,0.00020873,2]
[331387647,1720318240953,-195.888983,0.00020873,2]
[331387648,1720318240963,-195.888983,0.00020873,2]
[331387649,1720318240973,-195.888983,0.00020873,2]
[331387650,1720318240985,-195.888983,0.00020873,2]
[331387651,1720318240995,-195.888983,0.00020873,2]
[331387652,1720318241005,-329.655411,0.00020873,2]
[331387653,1720318241015,-329.655411,0.00020873,2]
[331387654,1720318241025,-329.655411,0.00020873,2]
[331387655,1720318241034,-329.655412,0.00020873,2]
[331387656,1720318241044,-315.455006,0.00020873,2]
[331387657,1720318241054,-315.455006,0.00020873,2]
[331387658,1720318241063,-315.455006,0.00020873,2]
[331387659,1720318241073,-315.455008,0.00020873,2]
[331387660,1720318241083,-622.24201689,0.00021064,2]
[331387661,1720318241092,-169.870349,0.00021096,2]
[331387662,1720318241102,-750.0,0.00021096,2]
[331387663,1720318241112,-323.858782,0.00021096,2]
[331387664,1720318241121,-323.858782,0.00021096,2]
[331387665,1720318241131,-176.256059,0.00021096,2]
[331387666,1720318241142,-176.256059,0.00021096,2]
[331387667,1720318241152,-151.0,0.00021619,2]
[331387668,1720318241167,-325.28721,0.00021619,2]
[331387669,1720318241177,-325.28721,0.00021619,2]
[331387670,1720318241187,-1117.11621423,0.00021917,2]
[331387671,1720318241198,-491.14974063,0.00021917,2]
[331387672,1720318241208,-197.21976724,0.00021917,2]
[331387673,1720318241219,-196.824,0.00021917,2]
[331387674,1720318241231,-434.17180384,0.00022106,2]
[331387675,1720318241242,-295.89896701,0.00022106,2]
[331387676,1720318241251,-62634.9628097,0.00022107,3]
[331387677,1720318241261,-620.11210084,0.00022117,2]
[331387678,1720318241271,-879.66892954,0.00022238,2]
[331387679,1720318241280,-298.0,0.00022292,2]
[331387682,1720318241290,-176.256059,0.0002237,7]
[331387697,1720318241409,-176.256061,0.0002237,7]
[331387698,1720318241419,-30000.0,0.00023032,2]
[331387699,1720318241429,-325.28721,0.000239,7]
[331387700,1720318241439,-325.28721,0.000239,7]
[331387701,1720318241449,-323.858782,0.000239,7]
[331387702,1720318241459,-323.858782,0.000239,7]
[331387703,1720318241469,-1143.44670705,0.000239,2]
[331387704,1720318241479,-2017.35107505,0.00024661,2]
[331387705,1720318241491,-44857.21894905,0.00025262,3]
[331387706,1720318241500,-151.0,0.00025352,7]
[331387707,1720318241509,-325.28721,0.00025352,7]
[331387708,1720318241523,-325.287209,0.00025352,7]
[331387709,1720318241534,-323.858782,0.00025352,7]
[331387710,1720318241544,-323.858775,0.00025352,7]
[331387711,1720318241553,-151.0,0.00025372,7]
[331387712,1720318241562,-151.0,0.00025481,7]
[331387713,1720318241573,-62634.9628097,0.00025491,3]
[331387714,1720318241584,-153.552436,0.00025501,7]
[331387715,1720318241593,-52108.7037465,0.00025501,2]
[331387716,1720318241604,-62634.9628097,0.0002599,3]
[331387717,1720318241614,-72520.17030962,0.00026,2]
[331387718,1720318241623,-189.07190326,0.00026,2]
[331387719,1720318241633,-7458.94652043,0.0002649,2]
[331387720,1720318241643,-2057.29370151,0.000266,2]
[331387721,1720318241653,-431.57582445,0.00027,15]
[331387722,1720318241663,-750.0,0.00027195,2]
[331387723,1720318241673,-500.0,0.00027397,2]
[331387724,1720318241683,-500.0,0.00027397,2]
[331387725,1720318241692,-500.0,0.00027397,2]
[331387726,1720318241702,-500.0,0.00027397,2]
[331387727,1720318241711,-500.0,0.00027397,2]
[331387728,1720318241721,-500.0,0.00027397,2]
[331387729,1720318241731,-500.0,0.00027397,2]
[331387730,1720318241744,-633.77712171,0.00027397,2]
[331387731,1720318241754,-500.0,0.00027397,2]
[331387732,1720318241764,-500.0,0.00027397,2]
[331387733,1720318241774,-500.0,0.00027397,2]
[331387734,1720318241784,-500.0,0.00027397,2]
[331387735,1720318241794,-500.0,0.00027397,2]
[331387736,1720318241804,-500.0,0.00027397,2]
[331387737,1720318241815,-173.580737,0.00027397,120]
[331387738,1720318241824,-175.20533383,0.000274,2]
[331387739,1720318241834,-43628.90162962,0.000275,2]
[331387740,1720318241844,-1277.27285341,0.000279,2]
[331387741,1720318241853,-31453.32299021,0.0002799,2]
[331387742,1720318241863,-268.36537859,0.00028,2]
[331387743,1720318241873,-199.3755273,0.00028,2]
[331387744,1720318241883,-1747.02612181,0.00028,7]
[331387745,1720318241893,-164.732773,0.0002831,2]
[331387746,1720318241907,-796.87513105,0.000285,2]
[331387747,1720318241917,-148009.50050712,0.0002877,2]
[331387767,1720318265699,302.68880078,0.00012121,2]
[331387768,1720318287069,25929.80615466,0.00012121,2]
[331387769,1720318332905,52113.34698525,0.00014692,2]
[331387796,1720319440241,-491.14974063,0.000151,2]
[331387798,1720319440252,-2800.00082769,0.00017808,2]
[331387800,1720319440262,-827.35902986,0.00017808,2]
[331387802,1720319440272,-938.53642952,0.00017808,2]
[331387804,1720319440282,-1044.87693169,0.00017808,2]
[331387806,1720319440292,-166.666666,0.0001783,2]
[331387808,1720319440303,-24900.0,0.00017988,2]
[331387810,1720319440313,-154.96442838,0.00018,2]
[331387811,1720319440322,-191.03593632,0.00018,2]
[331387812,1720319440332,-166.666666,0.00018317,2]
[331387813,1720319440341,-166.666666,0.00018803,2]
[331387814,1720319440350,-324.24161059,0.00019,2]
[331387815,1720319440359,-245.8313992,0.00019041,2]
[331387816,1720319440368,-164.860722,0.00019178,2]
[331387817,1720319440377,-172.0004,0.00019178,2]
[331387818,1720319440386,-166.666666,0.00019289,2]
[331387819,1720319440396,-166.666666,0.00019775,2]
[331387820,1720319440405,-52119.39254387,0.000198,2]
[331387821,1720319440414,-1260.84442195,0.000199,2]
[331387822,1720319440423,-1117.35505048,0.0002,2]
[331387823,1720319440433,-225.62340528,0.0002,2]
[331387824,1720319440442,-4174.40467449,0.0002,2]
[331387825,1720319440452,-763.48993106,0.0002,2]
[331387826,1720319440461,-176.1842021,0.0002,2]
[331387827,1720319440471,-558.7883257,0.0002,2]
[331387828,1720319440649,-166.666666,0.00020261,2]
[331387829,1720319440659,-750.0,0.00021096,2]
[331387830,1720319440668,-879.66892954,0.0002217,2]
[331387831,1720319440678,-50107.9702478,0.00023022,3]
[331387832,1720319440687,-30000.0,0.00023032,2]
[331387833,1720319440696,-1260.8444219,0.00023657,2]
[331387834,1720319440706,-189.12210345,0.00025,2]
[331387835,1720319440715,-381.14890235,0.0002667,2]
[331387836,1720319440724,-750.0,0.00027195,2]
[331387837,1720319440736,-500.0,0.00027397,2]
[331387838,1720319440745,-500.0,0.00027397,2]
[331387839,1720319440756,-500.0,0.00027397,2]
[331387840,1720319440766,-500.0,0.00027397,2]
[331387841,1720319440776,-500.0,0.00027397,2]
[331387842,1720319440786,-500.0,0.00027397,2]
[331387843,1720319440796,-500.0,0.00027397,2]
[331387844,1720319440805,-500.0,0.00027397,2]
[331387845,1720319440815,-500.0,0.00027397,2]
[331387846,1720319440824,-500.0,0.00027397,2]
[331387847,1720319440833,-500.0,0.00027397,2]
[331387848,1720319440844,-633.77712171,0.00027397,2]
[331387849,1720319440853,-500.0,0.00027397,2]
[331387850,1720319440863,-500.0,0.00027397,2]
[331387851,1720319440872,-199.6367703,0.00027397,120]
[331387852,1720319440882,-176.27505495,0.000274,2]
[331387853,1720319440892,-1260.8444219,0.00027415,2]
[331387854,1720319440902,-268.44438923,0.00028,2]
[331387855,1720319440921,-150.0,0.00028017,2]
[331387856,1720319440936,-150.0,0.00028227,2]
[331387857,1720319440947,-150.0,0.00028619,2]
[331387858,1720319440957,-373.0,0.000287,2]
[331387859,1720319440968,-289.443325,0.000287,2]
[331387860,1720319440978,-173.46606,0.000287,2]
[331387861,1720319440990,-50107.9702478,0.0002876,3]
[331387862,1720319440999,-1000.0,0.00028769,2]
[331387863,1720319441010,-41828.89757675,0.0002877,2]
[331387864,1720319441019,-164.860722,0.00028963,2]
[331387865,1720319441029,-848.76008577,0.00029,2]
[331387866,1720319441039,-287.44224475,0.00029265,2]
[331387867,1720319441048,-523.88603616,0.000298,120]
[331387868,1720319441058,-495.50543718,0.0003,4]
[331387869,1720319441068,-384.35044149,0.0003,10]
[331387870,1720319441078,-7759.99805805,0.0003,10]
[331387871,1720319441087,-202.86745879,0.0003,30]
[331387872,1720319441097,-1000.26496273,0.0003,7]
[331387873,1720319441107,-950.0,0.0003,30]
[331387874,1720319441117,-642.9488218,0.0003,4]
[331387875,1720319441127,-401.62478929,0.0003,30]
[331387876,1720319441136,-232.29605021,0.0003,4]
[331387877,1720319441146,-155.23189542,0.0003,4]
[331387878,1720319441156,-170.35079036,0.0003,4]
[331387879,1720319441167,-210.0,0.0003,2]
[331387880,1720319441179,-210.0,0.0003,2]
[331387881,1720319441189,-186.07363022,0.00030122,2]
[331387882,1720319441199,-50107.9702478,0.00030123,4]
[331387883,1720319441209,-9461.6047,0.00030133,30]
[331387884,1720319441219,-1000.0,0.00030139,2]
[331387885,1720319441234,-1260.8444219,0.00031172,2]
[331387886,1720319441244,-1000.0,0.00031509,2]
[331387887,1720319441254,-381.14890235,0.0003167,2]
[331387888,1720319441264,-151.0,0.00031689,6]
[331387889,1720319441275,-380.90110611,0.00032,120]
[331387890,1720319441285,-2448.85335951,0.000325,60]
[331387891,1720319441295,-631.77588735,0.00032879,2]
[331387892,1720319441306,-210.0,0.00033,2]
[331387893,1720319441316,-210.0,0.00033,2]
[331387894,1720319441326,-158.0,0.00033,2]
[331387895,1720319441336,-750.0,0.00033295,2]
[331387896,1720319441345,-151.0,0.00033464,7]
[331387897,1720319441355,-16708.94754489,0.00033584,5]
[331387898,1720319441370,-27557.99358007,0.00033584,5]
[331388009,1720319449258,-1166.18,0.00017808,2]
[331388010,1720319543981,272.53938336,0.00014999,2]
[331388012,1720319585015,5649.5,0.00025,120]
[331388013,1720319726297,2212.62498795,0.00015,2]
[331388025,1720320581025,8254.02632337,0.00014998,2]
[331388029,1720320617278,496.61494811,0.00014999,2]
[331388051,1720320633341,-308.15228703,0.00020996,2]
[331388053,1720320633351,-169.870349,0.00021096,2]
[331388055,1720320633360,-675.0,0.00021096,2]
[331388057,1720320633369,-106.22328676,0.0002217,2]
[331388064,1720320639047,-773.44564278,0.0002217,2]
[331388065,1720320639057,-164.8607335,0.00022691,2]
[331388067,1720320639067,-381.14890235,0.000229,2]
[331388069,1720320639077,-166.666666,0.00023632,2]
[331388071,1720320639087,-4773.68813604,0.00023924,2]
[331388113,1720320640224,-1544.13388645,0.00023924,2]
[331388114,1720320640236,-10475.57000002,0.00023924,2]
[331388184,1720321709068,-491.14974063,0.00015995,2]
[331388190,1720321833276,-1072.58812779,0.00016255,2]
[331388194,1720321833288,-16224.4159821,0.00016255,2]
[331388197,1720321833299,-24900.99371456,0.00016255,2]
[331388201,1720321833308,-6999.23274476,0.00016255,2]
[331388205,1720321833317,-1927.39506097,0.00018799,2]
[331388212,1720321833327,-254.09926824,0.000189,2]
[331388219,1720321833337,-167.771791,0.00021026,2]
[331388223,1720321833346,-746.353069,0.00021096,2]
[331388227,1720321833357,-250.0,0.00021475,2]
[331388230,1720321833366,-150.80871125,0.00021856,2]
[331388233,1720321833375,-166.666666,0.00021887,2]
[331388236,1720321833385,-1786.35557606,0.00022078,2]
[331388379,1720321840903,-23113.64442394,0.00022078,2]
[331388386,1720321840914,-879.66892954,0.00022378,2]
[331388392,1720321840924,-164.860722,0.00022456,2]
[331388397,1720321840934,-166.666666,0.00022484,2]
[331388401,1720321840944,-1927.39506091,0.00022635,2]
[331388403,1720321840956,-3968.06642419,0.00022941,2]
[331388405,1720321840971,-2411.60123714,0.00022942,2]
[331388407,1720321840981,-166.666666,0.00023081,2]
[331388409,1720321840994,-150.0,0.00023108,2]
[331388411,1720321841005,-150.0,0.00023295,2]
[331388413,1720321841018,-150.0,0.00023627,2]
[331388415,1720321841027,-166.666666,0.00023677,2]
[331388417,1720321841038,-254.09926824,0.000239,2]
[331388419,1720321841048,-4174.40467449,0.00023924,2]
[331388421,1720321841057,-225.62340528,0.00023924,2]
[331388423,1720321841066,-763.48993106,0.00023924,2]
[331388424,1720321841075,-262.26190685,0.00023924,2]
[331388425,1720321841084,-197.13244658,0.00023966,2]
[331388426,1720321841094,-24.60081211,0.00023966,2]
[331388428,1720321841106,-131.99538725,0.00023966,2]
[331388430,1720321841115,-170.51320675,0.00023968,2]
[331388432,1720321841127,-105.90986078,0.00023968,2]
[331388434,1720321841137,-302.09013922,0.00023968,2]
[331388436,1720321841148,-132.90986078,0.00023968,2]
[331388437,1720321841157,-190.21909002,0.00023968,2]
[331388438,1720321841167,-321.07809945,0.00023968,2]
[331388439,1720321841177,-287.44224475,0.00024228,2]
[331388440,1720321841186,-166.666666,0.00024274,2]
[331388441,1720321841195,-154.98555702,0.00024481,2]
[331388442,1720321841204,-749.7176337,0.00024551,2]
[331388443,1720321841220,-126.06290552,0.00024551,2]
[331388444,1720321841229,-166.666666,0.00024871,2]
[331388445,1720321841239,-189.12210345,0.00025,2]
[331388446,1720321841248,-190.58027952,0.00025,2]
[331388447,1720321841257,-1130.69,0.0002549,10]
[331388448,1720321841266,-1130.69,0.0002549,10]
[331388449,1720321841276,-60730.3054364,0.0002549,3]
[331388450,1720321841285,-60730.3054364,0.00025491,3]
[331388451,1720321841295,-1130.69,0.000255,10]
[331388452,1720321841304,-1130.69,0.000255,10]
[331388453,1720321841313,-52119.39254387,0.00025501,2]
[331388454,1720321841322,-30000.0,0.00025501,2]
[331388455,1720321841332,-648.1635994,0.00025501,2]
[331388456,1720321841341,-151.0,0.0002598,7]
[331388457,1720321841351,-186.07363022,0.00025988,2]
[331388458,1720321841361,-60730.3054364,0.00025989,3]
[331388459,1720321841370,-1000.0,0.00025989,2]
[331388460,1720321841379,-1130.69,0.00025989,10]
[331388461,1720321841388,-1130.69,0.00025989,10]
[331388462,1720321841397,-1130.69,0.00025989,10]
[331388463,1720321841407,-1130.69,0.00025989,10]
[331388464,1720321841416,-1130.69,0.00025989,10]
[331388465,1720321841425,-1130.69,0.00025989,10]
[331388466,1720321841434,-182190.916309,0.0002599,3]
[331388467,1720321841444,-1130.69,0.00025999,10]
[331388468,1720321841453,-1130.69,0.00025999,10]
[331388469,1720321841464,-1130.69,0.00025999,10]
[331388470,1720321841474,-1130.69,0.00025999,10]
[331388471,1720321841484,-1130.69,0.00025999,10]
[331388472,1720321841493,-1130.69,0.00025999,10]
[331388473,1720321841502,-1130.69,0.00025999,10]
[331388474,1720321841512,-1130.69,0.00025999,10]
[331388475,1720321841521,-1130.69,0.00025999,10]
[331388476,1720321841530,-1130.69,0.00025999,10]
[331388477,1720321841539,-1130.69,0.00025999,10]
[331388478,1720321841548,-1130.69,0.00025999,10]
[331388479,1720321841558,-1130.69,0.00025999,10]
[331388480,1720321841567,-1130.78899323,0.00025999,10]
[331388481,1720321841576,-369124.25525615,0.00026,2]
[331388482,1720321841588,-264.0,0.00026,2]
[331388690,1720322084561,241.05355367,0.00014999,2]
[331388697,1720322405815,648.1635994,0.00014999,2]
[331388698,1720322414170,248.27316847,0.00014999,2]
[331388789,1720323032597,-442.72715464,0.00016255,2]
[331388791,1720323032607,-154.74467129,0.0001818,2]
[331388794,1720323032616,-38.94038989,0.000188,2]
[331388796,1720323032628,-220.05961011,0.000188,2]
[331388798,1720323032638,-150.0,0.000189,2]
[331388800,1720323032647,-225.62340528,0.0002,2]
[331388801,1720323032655,-596.39630092,0.00021096,2]
[331388802,1720323032667,-112.63911408,0.00021096,2]
[331388803,1720323032676,-1117.35505048,0.00021917,2]
[331388804,1720323032685,-256.55465621,0.0002217,2]
[331388805,1720323032697,-166.666666,0.00022554,2]
[331388806,1720323032707,-166.666666,0.00023169,2]
[331388807,1720323032716,-301.5666026,0.00023233,2]
[331388808,1720323032728,-166.666666,0.00023784,2]
[331388809,1720323032738,-166.666666,0.00024399,2]
[331388810,1720323032747,-380.0,0.00024658,2]
[331388811,1720323032756,-200.0,0.00024658,2]
[331388812,1720323032765,-189.12210345,0.00025,2]
[331388813,1720323032775,-305.75194503,0.00025,2]
[331388814,1720323032784,-166.666666,0.00025013,2]
[331388815,1720323032793,-154.68290005,0.00025096,2]
[331388816,1720323032803,-616.01108812,0.0002511,2]
[331388817,1720323032812,-22.81058077,0.00025178,2]
[331388818,1720323032824,-183.37090373,0.00025178,2]
[331388819,1720323032833,-419.71565451,0.00025401,2]
[331389120,1720323039921,-24900.0,0.00021831,2]
[331389122,1720323039933,-1025.83064119,0.00025401,2]
[331389124,1720323039945,-2556.11,0.00025491,3]
[331389126,1720323039956,-57717.3929498,0.00025491,3]
[331389129,1720323039966,-52119.39254387,0.00025501,2]
[331389131,1720323039977,-30000.0,0.00025501,2]
[331389132,1720323039987,-166.666666,0.00025628,2]
[331389135,1720323039997,-115434.7859,0.0002588,3]
[331389137,1720323040008,-186.07363022,0.00025889,2]
[331389139,1720323040018,-151.0,0.0002589,7]
[331389141,1720323040027,-151.0,0.0002589,7]
[331389142,1720323040037,-151.0,0.0002589,7]
[331389144,1720323040047,-88888.0,0.0002589,3]
[331389146,1720323040057,-250.34676675,0.00025975,2]
[331389148,1720323040067,-151.0,0.0002598,7]
[331389150,1720323040076,-151.0,0.0002598,7]
[331389151,1720323040086,-1000.0,0.00025989,10]
[331389152,1720323040095,-1000.0,0.00025989,10]
[331389153,1720323040105,-1000.0,0.00025989,10]
[331389154,1720323040115,-1000.0,0.00025989,10]
[331389155,1720323040126,-1000.0,0.00025989,10]
[331389156,1720323040136,-1000.0,0.00025989,10]
[331389157,1720323040146,-1000.0,0.00025989,10]
[331389158,1720323040156,-1000.0,0.00025989,10]
[331389159,1720323040166,-1000.0,0.00025989,2]
[331389160,1720323040177,-173152.178849,0.0002599,3]
[331389161,1720323040187,-151.0,0.0002599,7]
[331389162,1720323040198,-1000.0,0.00025999,10]
[331389163,1720323040208,-1000.0,0.00025999,10]
[331389164,1720323040218,-1000.0,0.00025999,10]
[331389165,1720323040228,-1000.0,0.00025999,10]
[331389166,1720323040238,-1000.0,0.00025999,10]
[331389167,1720323040248,-1000.0,0.00025999,10]
[331389168,1720323040258,-1000.0,0.00025999,10]
[331389169,1720323040267,-1000.0,0.00025999,10]
[331389170,1720323040277,-1000.0,0.00025999,10]
[331389171,1720323040287,-1000.0,0.00025999,10]
[331389172,1720323040297,-215452.91325784,0.00026,2]
[331389173,1720323040310,-2436.17953988,0.00026,2]
[331389174,1720323040326,-3362.46,0.00026,2]
[331389175,1720323040339,-921.58466037,0.00026,2]
[331389176,1720323040352,-8498.33648472,0.00026,2]
[331389177,1720323040364,-500.0,0.00026,2]
[331389179,1720323041012,-302.105,0.00026,2]
[331389181,1720323041025,-479.10400001,0.00026,2]
[331389183,1720323041037,-376.84800031,0.00026,2]
[331389237,1720323044318,-494.57520933,0.00025491,3]
[331389238,1720323044336,-300.5,0.00025491,3]
[331389239,1720323044350,-1335.01479067,0.00025491,3]
[331389240,1720323044360,-1484.98520933,0.00026,2]
[331389241,1720323044465,-822.28009048,0.00026,2]
[331389242,1720323044478,-586.6757247,0.00026,2]
[331389243,1720323044491,-5580.0,0.00026,2]
[331389320,1720323046708,-635.99589071,0.00026,2]
[331389342,1720323166469,2205.52976471,0.00015,2]
[331389343,1720323183589,816.74514637,0.00015,2]
[331389344,1720323187511,9641.12159465,0.00014998,2]
[331389345,1720323198897,270.2450986,0.00014999,2]
[331389346,1720323199897,5480.17364093,0.00014998,2]
[331389347,1720323205356,1640.26437371,0.00014999,2]
[331389357,1720323739789,530.19885033,0.00014999,2]
[331389359,1720323746649,635.99589071,0.00014999,2]
[331389446,1720324239220,-185.72409459,0.000191,2]
[331389447,1720324239230,-164.928428,0.00019945,2]
[331389448,1720324239240,-166.666666,0.00019953,2]
[331389449,1720324239250,-1117.35505048,0.0002,2]
[331389451,1720324239261,-225.62340528,0.0002,2]
[331389452,1720324239271,-153.89952924,0.0002,2]
[331389453,1720324239280,-155.30594973,0.0002,2]
[331389454,1720324239290,-17837.41717268,0.00020155,2]
[331389456,1720324239302,-7062.58282732,0.00020155,2]
[331389457,1720324239312,-394.58389521,0.000203,2]
[331389460,1720324239322,-166.666666,0.00020497,2]
[331389462,1720324239332,-257.39669921,0.00021,2]
[331389464,1720324239342,-232.06495323,0.00021,2]
[331389466,1720324239352,-166.666666,0.0002104,2]
[331389468,1720324239363,-722.995508,0.00021096,2]
[331389469,1720324239372,-166.666666,0.00021584,2]
[331389470,1720324239383,-166.666666,0.00022128,2]
[331389471,1720324239393,-166.666666,0.00022672,2]
[331389472,1720324239404,-1393.08183893,0.00022932,2]
[331389473,1720324239415,-238.52406319,0.00023,2]
[331389474,1720324239425,-1000.0,0.00023031,10]
[331389475,1720324239435,-30000.0,0.00023032,2]
[331389476,1720324239446,-164.860722,0.00024307,2]
[331389477,1720324239456,-380.0,0.00024658,2]
[331389478,1720324239467,-2201.09,0.0002498,3]
[331389479,1720324239478,-1834.24,0.0002498,3]
[331389480,1720324239488,-1000.0,0.00024989,10]
[331389481,1720324239498,-1000.0,0.00024989,10]
[331389482,1720324239508,-60753.9082216,0.0002499,3]
[331389483,1720324239529,-1000.0,0.00024999,10]
[331389484,1720324239541,-189.12210345,0.00025,2]
[331389485,1720324239551,-155.24437843,0.00025,2]
[331389486,1720324239561,-1850.59818205,0.00025,2]
[331389487,1720324239572,-1025.01660227,0.00025,2]
[331389488,1720324239582,-45082.44471615,0.00025,2]
[331389489,1720324239592,-190.58027952,0.00025,2]
[331389490,1720324239841,-1000.0,0.0002549,10]
[331389491,1720324239852,-60753.9082216,0.00025491,3]
[331389492,1720324239863,-1000.0,0.000255,10]
[331389493,1720324239873,-1000.0,0.000255,10]
[331389494,1720324239883,-52119.39254387,0.00025501,2]
[331389495,1720324239893,-1000.0,0.0002577,10]
[331389496,1720324239904,-250.34676675,0.00025799,2]
[331389497,1720324239916,-186.07363022,0.00025879,2]
[331389498,1720324239926,-1000.0,0.0002588,2]
[331389499,1720324239936,-121507.816443,0.0002588,3]
[331389500,1720324239946,-1000.0,0.00025889,10]
[331389501,1720324239957,-1000.0,0.00025889,10]
[331389502,1720324239967,-1000.0,0.00025889,10]
[331389503,1720324239977,-151.0,0.0002589,7]
[331389504,1720324239987,-88888.0,0.0002589,3]
[331389505,1720324239998,-1000.0,0.00025979,10]
[331389506,1720324240008,-1000.0,0.00025979,10]
[331389507,1720324240018,-1000.0,0.00025979,10]
[331389508,1720324240028,-1000.0,0.00025979,10]
[331389509,1720324240039,-151.0,0.0002598,7]
[331389510,1720324240048,-121507.816443,0.0002599,3]
[331389511,1720324240059,-1000.0,0.00025999,10]
[331389512,1720324240069,-1000.0,0.00025999,10]
[331389513,1720324240079,-1000.0,0.00025999,10]
[331389514,1720324240088,-1000.0,0.00025999,10]
[331389515,1720324240098,-1000.0,0.00025999,10]
[331389516,1720324240108,-261.38,0.00025999,10]
[331389517,1720324240118,-172287.58825261,0.00026,2]
[331389518,1720324240128,-154.9628906,0.00026,2]
[331389519,1720324240138,-763.48993106,0.00026,2]
[331389520,1720324240147,-4174.40467449,0.00026,2]
[331389521,1720324240158,-21400.9604778,0.00026,2]
[331389772,1720324245353,-151.0,0.0002589,7]
[331389773,1720324245363,-73688.30641884,0.00026,2]
[331389824,1720324412022,156.98292638,0.00014999,2]
[331389825,1720324448329,256.95933429,0.00014999,2]
[331389839,1720325140797,752.04,0.00014999,2]
[331389844,1720325240816,501.36,0.00014999,2]
[331389845,1720325248043,501.36,0.00014999,2]
[331389848,1720325370553,217.6738,0.00014999,2]
[331389937,1720325439883,-9862.28999998,0.00016254,2]
[331389940,1720325439897,-47352.6571236,0.00016254,2]
[331389955,1720325440090,-1393.05349379,0.00016701,2]
[331389956,1720325440102,-276.42306753,0.00016801,2]
[331389957,1720325440113,-204.90175361,0.00018,2]
[331389958,1720325440122,-217.6738,0.0001818,2]
[331389959,1720325440132,-1117.35505048,0.0002,2]
[331389960,1720325440142,-763.48993106,0.0002,2]
[331389961,1720325440152,-225.62340528,0.0002,2]
[331389962,1720325440163,-24900.0,0.00020282,2]
[331389963,1720325440173,-1393.05349375,0.00020837,2]
[331389964,1720325440183,-733.890681,0.00021096,2]
[331389965,1720325440194,-250.34676675,0.00021442,2]
[331389966,1720325440204,-250.0,0.00021548,2]
[331389967,1720325440214,-166.666666,0.00022004,2]
[331389968,1720325440224,-166.666666,0.00022604,2]
[331389969,1720325440234,-166.666666,0.00023204,2]
[331389970,1720325440244,-159.493622,0.00023311,2]
[331389971,1720325440255,-166.666666,0.00023804,2]